Cogmind - Beta 11 @@@ ROGUE MODE // 2022.03.28 @ 08:28:47 Player: Chloroform Result: Destroyed by D-53 Grenadier with Mini Grenade Launcher Performance ------------- Evolutions (0) 0 Regions Visited (2) 400 Robots Destroyed (12) 60 Value Destroyed (157) 157 Prototype IDs (0) 0 Alien Tech Used (0) 0 Bonus (14) 14 TOTAL SCORE: 631 Bonus ------- Follower Combat Kills 14 Cogmind --------- Core Integrity 0/250 Matter 214/300 Energy 100/100 System Corruption 0% Temperature Cool (0) Movement Core (250) Ox4 Location -10/Mines Parts ------- > --- POWER (1) -------- (None) > --- PROPULSION (2) --- (None) > --- UTILITY (2) ------ Medium Storage Unit > --- WEAPON (2) ------- Light Assault Rifle Rocket Launcher > --- INVENTORY (10) --- Light Ion Engine Light Ion Engine Aluminum Leg Wheel Wheel Medium Storage Unit Medium Laser Light Assault Rifle Peak State ------------ > --- POWER ------------ Ion Engine > --- PROPULSION ------- Aluminum Leg Aluminum Leg > --- UTILITY ---------- Medium Storage Unit Improved Terrain Scanner > --- WEAPON ----------- Assault Rifle Rocket Launcher > --- INVENTORY -------- Light Ion Engine Light Ion Engine Aluminum Leg Wheel Wheel Medium Storage Unit Medium Laser Light Assault Rifle Light Assault Rifle Grenade Launcher [Rating: 11] Favorites ----------- Power Ion Engine Engine Ion Engine Propulsion Aluminum Leg Leg Aluminum Leg Utility Medium Storage Unit Device Improved Terrain Scanner Storage Medium Storage Unit Weapon Assault Rifle Energy Gun Medium Laser Ballistic Gun Assault Rifle Launcher Grenade Launcher Build | -11 -10 -10 ------- Run | Scr Mat Min Slots Evolved . | . . . Power . | . . . Propulsion . | . . . Utility . | . . . Weapon . | . . . Parts Attached 14 | . 7 7 Power 1 | . . 1 Engine 1 | . . 1 Core . | . . . Reactor . | . . . Propulsion . | . . . Treads . | . . . Leg . | . . . Wheel . | . . . Hover . | . . . Flight . | . . . Utility 4 | . 3 1 Device 3 | . 2 1 Storage 1 | . 1 . Processor . | . . . Hackware . | . . . Protection . | . . . Artifact . | . . . Weapon 9 | . 4 5 Energy Gun 2 | . 2 . Energy Cannon . | . . . Ballistic Gun 3 | . 1 2 Ballistic Cannon . | . . . Launcher 4 | . 1 3 Special Weapon . | . . . Impact Weapon . | . . . Slashing Weapon . | . . . Piercing Weapon . | . . . Special Melee Weapon . | . . . Unidentified Prototypes . | . . . Parts Lost 6 | . . 6 Power 1 | . . 1 Propulsion 2 | . . 2 Utility 1 | . . 1 Weapon 2 | . . 2 Highest Loss Streak 6 | . . 6 To Critical Strikes . | . . . Average Slot Usage (%) 97 | . 94 99 Engine 14 | . 14 14 Leg 27 | . 28 27 Device 12 | . 8 13 Storage 14 | . 14 14 Energy Gun 4 | . 12 . Ballistic Gun 23 | . 14 27 Naked Turns . | . . . Heaviest Build 19 | 12 18 19 Greatest Support 20 | 20 20 20 Greatest Overweight (x) . | . . . Average Overweight (x) . | . . . Largest Inventory Capacity 10 | 8 10 10 Average Capacity 9 | 8 9 10 Most Carried 10 | 6 10 10 Average Carried 9 | 6 8 9 Final Capacity 10 | 8 10 10 Final Carried 10 | 6 10 8 Class Distribution -------------------- 100% | Mutant Dominant Class ---------------- Mutant | -10/Materials Mutant | -10/Mines Resources | -11 -10 -10 ----------- Run | Scr Mat Min Matter Collected 450 | 200 128 122 Remotely . | . . . Salvage Created 449 | . 285 164 Parts 25 | . 19 6 Haulers Intercepted 1 | . 1 . Recyclers Shooed . | . . . Parts Field Recycled . | . . . Retrieved Matter . | . . . Parts Self-Destructed . | . . . Prevented . | . . . Kills | -11 -10 -10 ------- Run | Scr Mat Min Combat Hostiles Destroyed 10 | . 5 5 Guns 4 | . 3 1 AOE 6 | . 2 4 Classes Destroyed 8 | . 7 1 Worker 1 | . 1 . Builder 1 | . 1 . Hauler 1 | . 1 . Recycler 2 | . 1 1 Watcher 1 | . 1 . Swarmer 4 | . 3 1 Grunt 2 | . 2 . Assembled 4 | . . 4 Best Kill Streak 6 | . 6 4 Combat Bots Only 4 | . 3 4 Max Kills in Single Turn 3 | . 2 3 Gunslinging . | . . . Exploded 3 | . 1 3 Melee . | . . . Uniques/NPCs Destroyed . | . . . Combat | -11 -10 -10 -------- Run | Scr Mat Min Damage Taken 895 | . 181 714 Core 269 | . 36 233 Absorbed by Shields . | . . . Core Remaining (%) 100 | 100 . . Volleys Fired 34 | . 16 18 Largest 2 | . 2 2 Hottest 70 | . 70 63 Shots Fired 67 | . 32 35 Gun 55 | . 29 26 Cannon . | . . . Launcher 12 | . 3 9 Special . | . . . Kinetic 42 | . 16 26 Thermal 8 | . 8 . Explosive 12 | . 3 9 Electromagnetic 5 | . 5 . Robot Hit Streak 8 | . 8 6 Robot Miss Streak 3 | . 3 2 Penetration Max . | . . . Secondary Targets . | . . . Shots Hit Robots 40 | . 17 23 Core Hits 44 | . 16 28 Critical Kills . | . . . Critical Parts Destroyed . | . . . Critical Strikes . | . . . Melee Attacks . | . . . Impact . | . . . Slashing . | . . . Piercing . | . . . Sneak Attacks . | . . . Combat Hostiles . | . . . Follow-up Attacks . | . . . Damage Inflicted 968 | . 423 545 Guns 358 | . 211 147 Cannons . | . . . Explosions 610 | . 212 398 Melee . | . . . Ramming . | . . . Kinetic 273 | . 126 147 Thermal 13 | . 13 . Explosive 610 | . 212 398 Electromagnetic 72 | . 72 . Impact . | . . . Slashing . | . . . Piercing . | . . . Highest Corruption . | . . . Average Corruption . | . . . Corruption Purged . | . . . Corruption Blocked . | . . . Overload Shots . | . . . Overflow Damage 6 | . . 6 Projectiles . | . . . Explosions 6 | . . 6 Melee . | . . . Knockbacks . | . . . Impact . | . . . Kinetic . | . . . Secondary . | . . . Self-Inflicted Damage 51 | . 51 . Shots 2 | . 2 . Rammed . | . . . Targets Rammed . | . . . Kicked . | . . . Crushed . | . . . Highest Temperature 27 | . 27 12 Average Temperature 12 | . 13 6 Received Heat Transfer 27 | . 27 . Siege Activations . | . . . Robots Corrupted . | . . . Combat Hostiles . | . . . Parts Fried . | . . . Impact Corruptions . | . . . Robots Melted . | . . . Combat Hostiles . | . . . Parts Melted . | . . . Heat Transferred 37 | . 37 . Parts Sabotaged . | . . . Parts Stolen . | . . . Parts Stripped . | . . . Power Chain Reactions . | . . . Missiles Intercepted . | . . . Alert | -11 -10 -10 ------- Run | Scr Mat Min Peak Influence 248 | . 248 117 Initial 18 | . . 18 Average 40 | . 66 28 Maximum Alert Level 1 | . 1 . Low Security (%) 99 | 100 97 100 Level 1 . | . 2 . Level 2 . | . . . Level 3 . | . . . Level 4 . | . . . Level 5 . | . . . High Security . | . . . Max Security . | . . . Squads Dispatched . | . . . Investigation . | . . . Extermination . | . . . Reinforcement . | . . . Assault . | . . . Garrison . | . . . Intercept . | . . . Searches Triggered . | . . . Construction Impeded . | . . . Haulers Reinforced . | . . . Active Scanning Responses . | . . . Cargo Convoy Interrupts . | . . . Stealth | -11 -10 -10 --------- Run | Scr Mat Min Distress Signals 2 | . 2 . Communications Jammed . | . . . Distress Signals . | . . . Times Spotted 22 | . 11 11 Peak Tracking Total 6 | . 6 6 Tactical Retreats 1 | . . 1 Traps | -11 -10 -10 ------- Run | Scr Mat Min Traps Triggered . | . . . Indirectly . | . . . Trap Hack Attempts . | . . . Triggered . | . . . Disarmed . | . . . Reprogrammed . | . . . Reused . | . . . Traps Extracted . | . . . Installed . | . . . Triggered . | . . . Machines | -11 -10 -10 ---------- Run | Scr Mat Min Machines Disabled 1 | . 1 . Max in Single Turn 1 | . 1 . Machines Sabotaged . | . . . Garrisons Compromised . | . . . Overloaded Fab Kills . | . . . Hacking | -11 -10 -10 --------- Run | Scr Mat Min Machines Accessed . | . . . Terminals . | . . . Fabricators . | . . . Repair Stations . | . . . Recycling Units . | . . . Scanalyzers . | . . . Garrison Access . | . . . Total Hacks . | . . . Successful . | . . . Failed . | . . . Catastrophic . | . . . Database Lockouts . | . . . Manual . | . . . Terminals . | . . . Fabricators . | . . . Repair Stations . | . . . Recycling Units . | . . . Scanalyzers . | . . . Garrison Access . | . . . Terminal Hacks . | . . . Fabricator Hacks . | . . . Repair Station Hacks . | . . . Recycling Unit Hacks . | . . . Scanalyzer . | . . . Garrison Access Hacks . | . . . Unauthorized Hacks . | . . . Terminals . | . . . Fabricators . | . . . Repair Stations . | . . . Recycling Units . | . . . Scanalyzers . | . . . Garrison Access . | . . . Data Cores Recovered . | . . . Used . | . . . Hacking Detections . | . . . Full Trace Events . | . . . Feedback Events . | . . . Feedback Blocked . | . . . Robot Schematics Acquired . | . . . Robots Built . | . . . Authchips . | . . . Time . | . . . Total Robot Build Rating . | . . . Part Schematics Acquired . | . . . Parts Built . | . . . Authchips . | . . . Time . | . . . Total Part Build Rating . | . . . Parts Repaired . | . . . Time . | . . . Parts Recycled . | . . . Recycled Matter . | . . . Retrieved Matter . | . . . Retrieved Components . | . . . Parts Scanalyzed . | . . . Part Schematics Acquired . | . . . Parts Damaged . | . . . Bothacking | -11 -10 -10 ------------ Run | Scr Mat Min Used RIF Installer . | . . . Robots Hacked . | . . . Non-combat . | . . . Combat . | . . . Robot Hacks Applied . | . . . Relay Couplers Released . | . . . Fabnet Peak Effective % . | . . . Robots Rewired . | . . . Allies Hacked . | . . . Hacks Repelled . | . . . Allies | -11 -10 -10 -------- Run | Scr Mat Min Total Allies 2 | . . 2 Largest Group 2 | . . 2 Highest-Rated Group 41 | . . 41 Highest-Rated Ally 31 | . . 31 Total Orders . | . . . Ally Attacks 11 | . . 11 Total Damage 186 | . . 186 Kills 3 | . . 3 Allies Corrupted . | . . . Allies Melted . | . . . Intel | -11 -10 -10 ------- Run | Scr Mat Min Robot Analysis Total . | . . . Derelict Logs Recovered 3 | . . 3 Drone Launches . | . . . Drone Recoveries . | . . . Exploration | -11 -10 -10 ------------- Run | Scr Mat Min Turns Passed 1279 | 4 406 869 Spaces Moved 898 | 4 244 650 Core . | . . . Treads . | . . . Legs 898 | 4 244 650 Wheels . | . . . Hover . | . . . Flight . | . . . Fastest Speed 120 | 120 120 120 Average Speed 120 | 120 120 120 Slowest Speed 120 | 120 120 120 Overloaded Moves . | . . . Propulsion Burnouts . | . . . Robots Hopped . | . . . Cave-ins Triggered . | . . . Exploration Rate (%) 46 | 2 48 90 Regions Visited 2 Branch Regions 1 Pre-discovered Areas 2 | . . 2 Known Exits Taken . | . . . Unknown Exits Taken 2 | 1 1 . Scrap Searched . | . . . Spaces Dug . | . . . Terrain Destroyed 58 | . 16 42 Melee . | . . . Projectile . | . . . AOE 58 | . 16 42 Terrain Rammed . | . . . Walls Destroyed . | . . . Machines Disabled . | . . . Actions | -11 -10 -10 --------- Run | Scr Mat Min Total 1033 | 3 324 706 Wait 67 | . 45 22 Move 896 | 3 243 650 Hop . | . . . Pick Up 13 | . 9 4 Fast Attach 1 | . . 1 Attach 3 | . 1 2 Detach . | . . . Swap 10 | . 6 4 Drop 9 | . 4 5 Fire 34 | . 16 18 Melee . | . . . Ram . | . . . Kick . | . . . Crush . | . . . Escape Stasis . | . . . Rewire . | . . . Trap . | . . . Miscellaneous . | . . . Route ------- -11/Scrapyard -10/Materials (discovered 2 exits: [*Mat] / [*Min]) -10/Mines History --------- Turn | Location | Event 1 | -11/Scrapyard | Discovered new exit (range 1) 5 | -11/Scrapyard | Entered Materials 252 | -10/Materials | Discovered new exit (range 12) 313 | -10/Materials | Build established: Mutant 388 | -10/Materials | Discovered new exit (range 9) 411 | -10/Materials | Entered Mines 419 | -10/Mines | Learned location of Zion (-7) 447 | -10/Mines | Learned Materials terminal intel 659 | -10/Mines | Assembled infested the area 709 | -10/Mines | Met 8R-AWN 906 | -10/Mines | Received a Rocket Launcher from a helpful Derelict 1059 | -10/Mines | Learned Materials security intel 1068 | -10/Mines | Found a damaged Exp. Sensor Array with a note attached 1201 | -10/Mines | Learned location of Storage (-9) 1273 | -10/Mines | Core integrity fell below 50% 1280 | -10/Mines | Core integrity fell below 20% 1280 | -10/Mines | Destroyed by D-53 Grenadier with Mini Grenade Launcher Last Messages --------------- top of us... With this we can! Deliver it to Megawrench for repairs then we'll never be afraid of an ambush while sneaking around Materials again, ha." 01201_ A derelict emerges from the shadows: "Are any of them following you? I'm here trying to lose some heat after our second raid on Storage failed. Whatever you do stay away from that place, they've tightened security following our previous successful raids." World map updated: -9/Storage. 01203_ FM-KWL(g): "We scattered so the Unaware couldn't effectively use their advantage in numbers, and I suggest you do the same." 01203_ FM-KWL(g) slips back into the shadows. 01263_ T-07 Excavator destroyed. 01266_ Imp. Terrain Scanner destroyed. 01269_ Assault Rifle destroyed. 01271_ Aluminum Leg destroyed. 01272_ Grenade Launcher destroyed. 01274_ The unstable cave ceiling collapses. 01276_ Aluminum Leg destroyed. 01277_ The unstable cave ceiling collapses. 01280_ Ion Engine destroyed. Map ----- +----------------------------------------------------+ | ??#????#?# ### #????????# =% #?# #?? | | ########## ### #????##### ##?# #?? | | #?#??# ######% ###?# """ #?? | | ##################??# #????# ###??# """ #?? | | #?#???????#??## ##?# ######????# ###### """ #?? | | #????????#??## ### #?##?#????# % # ## #?? | | #????????#??# #??????#??# # ########?? | | ??????????#?# #?????????### # #???????#? | | ?????????#??## ####??????#??### # #????????? | | ?????????#???## ##?????##?????# # # #??#?#???? | | ????????????#?#####????#?## ####### # #?????#??# | | ??????????????###??#?????# ## ###????????? | | ????????????????????????#?# % ##????????? | | ??#?????????#?#???????????## #????????? | | ????????????#??####???#????###### #??#?????? | | ???????????##### ##????????????## #????????? | | ???????????# #?????#?#????## ##?#??????? | | ???????????# #?????????#### ##?????????? | | ??????????## ##????????## ##?????????? | | ????????????# ##????????# ####??????? | | ???????????## #?######## ##???#?? | | ????????????# ### ## #?????? | | #???????????## # #?????? | | ###??????????# ##?????? | | ########??# ##??????? | | #### d @ ### ##???????? | | ## d #### ##????????? | | ### ## % #### #?????????? | | #?# ### # ## #?????????? | | #?# #?### ## ## #?????????? | | #?# #????# ##??####### #?????????? | | #?# #?????## #?????#???# ## #?????????? | | #?# #??????# ##?????????# ### #?????????? | | ##?# #??????# ##?????????## ###?# #########?? | | ##??# ??????# ##?????????# #????# # """ #?? | | #???###??????## #?????##??# ?????# # """ #?? | | #???????# ##### #???## ##?#??????# # """ #?? | | #???????# ##??# #????????# # !%!= #?? | | ????????######## #### #????????# %*= #?? | | ???????????????## ## ##????????#### %= #?? | | ????????????????## #????????????#########?? | | ?????????????????# ##??????????????????????? | | ?????????????????## ##???????????????????????? | | ??????????????????## ##????????????????????????? | | ???????????????????####?????????????????????????? | | ????????????????????????????????????????????????? | | ????????????????????????????????????????????????? | | ????????????????????????????????????????????????? | | | | | +----------------------------------------------------+ Best States ------------- Heat Dissipation 25 Energy Generation 10 Energy Capacity 250 Matter Stores 300 Matter Capacity 300 Sight Range 16 Robot Scan Range 14 Terrain Scan Range 16 Terrain Scan Density 10 Evasion (%) 55 Item Schematics ----------------- None Robot Schematics ------------------ None Fabricated ------------ Nothing Alien Tech Used ----------------- None Achievements -------------- None Challenges ------------ None Game ------ Seed BiometalThermicDissipator Manual? 0 Play Time 00:12:12 Cumulative 10.0 hours Start 2022.03.28 @ 08:17:46 End 2022.03.28 @ 08:28:47 Sessions 1 Manual Loads 0 Difficulty Rogue Special Mode None Game No. 17 Rogue 14 Adventurer 3 Explorer 0 Win Type - Total 0 Types 0/0/0/0/0/0/0/0/0 Lore% 13 Gallery% 18 Achievement% 18 Wizard Run 0 Options --------- ASCII 0 Keyboard 0 Movement Mouse Keybinds 0 Fullscreen 0 Font 16/SmallcapsGlow Map View 76x50 Tactical HUD 1 Map Filters NONE Filters NONE Steam 1 RUN: cb45d8f9-d69f-4cea-b71f-4cc714872c10